Cogmind - Beta 15 @@@ ROGUE MODE // 2025.08.07 @ 12:05:45 Player: Inverisimilidude Result: Destroyed by as-58893 with Assembled Rifle Performance ------------- Evolutions (0) 0 Regions Visited (2) 400 Robots Destroyed (21) 105 Value Destroyed (391) 391 Prototype IDs (5) 100 Alien Tech Used (0) 0 Bonus (0) 0 TOTAL SCORE: 996 Bonus ------- None Cogmind --------- Core Integrity 0/250 Matter 172/300 Energy 250/250 System Corruption 0% Temperature Cool (0) Movement Rolling (175) Ox5 Location -10/Mines Parts ------- > --- POWER (1) -------- Ion Engine > --- PROPULSION (2) --- Light Treads Compact Wheel > --- UTILITY (2) ------ Huge Storage Unit > --- WEAPON (2) ------- Light Cannon Light Cannon > --- INVENTORY (25) --- Ion Engine Ion Engine Light Treads Aluminum Leg Wheel Medium Matter Pod (0) Medium Laser Small Laser Assault Rifle Light Assault Rifle Light Cannon Mining Laser Peak State ------------ > --- POWER ------------ Ion Engine > --- PROPULSION ------- Light Treads Compact Wheel > --- UTILITY ---------- Huge Storage Unit Seismic Detector > --- WEAPON ----------- Medium Laser Light Cannon > --- INVENTORY -------- Ion Engine Ion Engine Light Treads Wheel Large Storage Unit Small Laser Assault Rifle Light Assault Rifle Grenade Launcher Mining Laser [Rating: 8] Favorites ----------- Power Ion Engine Engine Ion Engine Propulsion Compact Wheel Treads Light Treads Wheel Compact Wheel Utility Seismic Detector Device Seismic Detector Storage Huge Storage Unit Weapon Medium Laser Energy Gun Medium Laser Ballistic Cannon Light Cannon Launcher Grenade Launcher Build | -11 -10 -10 ------- Run | Yrd Mat Min Slots Evolved . | . . . Power . | . . . Propulsion . | . . . Utility . | . . . Weapon . | . . . Parts Attached 14 | 7 4 3 Power 1 | 1 . . Engine 1 | 1 . . Core . | . . . Reactor . | . . . Propulsion 3 | 2 . 1 Treads 2 | 1 . 1 Leg . | . . . Wheel 1 | 1 . . Hover . | . . . Flight . | . . . Utility 4 | 2 2 . Device 1 | 1 . . Storage 3 | 1 2 . Processor . | . . . Hackware . | . . . Protection . | . . . Artifact . | . . . Weapon 6 | 2 2 2 Energy Gun 2 | 2 . . Energy Cannon . | . . . Ballistic Gun . | . . . Ballistic Cannon 3 | . 1 2 Launcher 1 | . 1 . Special Weapon . | . . . Impact Weapon . | . . . Slashing Weapon . | . . . Piercing Weapon . | . . . Special Melee Weapon . | . . . Unidentified Prototypes . | . . . Parts Lost 4 | . . 4 Power . | . . . Propulsion 1 | . . 1 Utility 1 | . . 1 Weapon 2 | . . 2 Highest Loss Streak 3 | . . 3 To Critical Strikes . | . . . Average Backups 9 | 2 9 13 Power 1 | . 1 2 Propulsion 2 | 1 2 3 Utility . | . . 1 Weapon 4 | . 4 6 Tool/Special . | . . . Unused Backups 10 | 1 . 9 Power 2 | . . 2 Propulsion 4 | 1 . 3 Utility . | . . . Weapon 4 | . . 4 Tool/Special . | . . . Average Slot Usage (%) 98 | . 100 92 Engine 14 | . 14 14 Treads 14 | . 14 14 Wheel 14 | . 14 14 Device 12 | . 14 8 Storage 14 | . 14 14 Energy Gun 9 | . 10 4 Ballistic Cannon 10 | . 8 22 Launcher 7 | . 9 . Peak Build Rating 8 | 7 8 8 Average Rating 7 | 5 7 7 On Entrance 5 | . 7 8 Naked Turns . | . . . Heaviest Build 92 | 14 92 91 Greatest Support 20 | 20 16 16 Greatest Overweight (x) 5 | . 5 5 Average Overweight (x) 2 | . 2 5 Largest Inventory Capacity 25 | 8 25 25 Average Capacity 18 | 7 19 25 Most Carried 15 | 5 15 15 Average Carried 9 | 3 9 12 Final Capacity 25 | 8 25 25 Final Carried 15 | 5 15 12 Class Distribution -------------------- 100% | Mutant Dominant Class ---------------- Mutant | -10/Materials Mutant | -10/Mines Resources | -11 -10 -10 ----------- Run | Yrd Mat Min Matter Collected 522 | 245 118 159 Remotely . | . . . Salvage Created 288 | 29 188 71 Parts 40 | 4 29 7 Haulers Intercepted 1 | . 1 . Recyclers Shooed . | . . . Parts Field Recycled . | . . . Retrieved Matter . | . . . Parts Self-Destructed . | . . . Prevented . | . . . Kills | -11 -10 -10 ------- Run | Yrd Mat Min Combat Hostiles Destroyed 19 | . 12 7 Guns 2 | . 2 . Cannons 5 | . 1 4 AOE 12 | . 9 3 Classes Destroyed 9 | 1 6 2 Builder 1 | . 1 . Tunneler 1 | 1 . . Hauler 1 | . 1 . Operator 1 | . 1 . Watcher 1 | . 1 . Swarmer 12 | . 9 3 Grunt 3 | . 3 . Demolisher 1 | . . 1 Assembled 3 | . . 3 Best Kill Streak 5 | 1 5 3 Combat Bots Only 3 | . 3 3 Max Kills in Single Turn 3 | 1 3 3 Gunslinging . | . . . Exploded 3 | . 3 3 Melee . | . . . Uniques/NPCs Destroyed . | . . . Combat | -11 -10 -10 -------- Run | Yrd Mat Min Hostile Shots Fired 47 | . 21 26 Missed 14 | . 10 4 Hits 33 | . 11 22 Projectile 33 | . 11 22 AOE 14 | . . 14 Damage Taken 970 | . 182 788 Core 257 | . 44 213 Absorbed by Shields . | . . . Core Remaining (%) 100 | 100 . . Volleys Fired 37 | 4 16 17 Largest 2 | 2 2 2 Hottest 90 | 90 80 60 Shots Fired 74 | 8 32 34 Gun 21 | 8 13 . Cannon 40 | . 7 33 Launcher 13 | . 12 1 Special . | . . . Kinetic 40 | . 7 33 Thermal 21 | 8 13 . Explosive 13 | . 12 1 Electromagnetic . | . . . Robot Hit Streak 9 | 3 6 9 Robot Miss Streak 5 | 2 2 5 Penetration Max . | . . . Secondary Targets . | . . . Shots Hit Robots 33 | 4 14 15 Core Hits 29 | 1 18 10 Critical Kills . | . . . Critical Parts Destroyed . | . . . Critical Strikes 2 | . 1 1 Blast 2 | . 1 1 Melee Attacks . | . . . Impact . | . . . Slashing . | . . . Piercing . | . . . Sneak Attacks . | . . . Combat Hostiles . | . . . Follow-up Attacks . | . . . Damage Inflicted 1199 | 48 759 392 Guns 99 | 48 51 . Cannons 372 | . 88 284 Explosions 728 | . 620 108 Melee . | . . . Ramming . | . . . Kinetic 372 | . 88 284 Thermal 207 | 48 51 108 Explosive 620 | . 620 . Electromagnetic . | . . . Impact . | . . . Slashing . | . . . Piercing . | . . . Highest Corruption . | . . . Average Corruption . | . . . Corruption Purged . | . . . Corruption Blocked . | . . . Overload Shots . | . . . Overflow Damage 89 | . 55 34 Projectiles . | . . . Explosions 89 | . 55 34 Melee . | . . . Knockbacks 3 | . . 3 Impact . | . . . Kinetic 3 | . . 3 Secondary . | . . . Self-Inflicted Damage 242 | . 63 179 Shots 7 | . 2 5 Rammed . | . . . Targets Rammed . | . . . Kicked . | . . . Crushed . | . . . Highest Temperature 126 | 90 126 60 Average Temperature 43 | 40 46 35 Received Heat Transfer 38 | . 18 20 Siege Activations . | . . . Martial Activations . | . . . Shielding Activations . | . . . Robots Disrupted . | . . . Combat Hostiles . | . . . Robots Corrupted . | . . . Combat Hostiles . | . . . Parts Fried . | . . . Impact Corruptions . | . . . Robots Melted . | . . . Combat Hostiles . | . . . Parts Melted . | . . . Heat Transferred 422 | 124 148 150 Parts Sabotaged . | . . . Parts Stolen . | . . . Parts Stripped . | . . . Power Chain Reactions . | . . . Alert | -11 -10 -10 ------- Run | Yrd Mat Min Maximum Alert Level 1 | . 1 1 Low Security (%) 86 | 100 89 64 Level 1 13 | . 10 35 Level 2 . | . . . Level 3 . | . . . Level 4 . | . . . Level 5 . | . . . High Security . | . . . Max Security . | . . . Peak Influence 227 | . 227 222 Initial 60 | . . 60 Average 120 | . 127 184 Influence Increases 646 | 5 439 202 Destroy 0b10 Robot/C 320 | . 240 80 Destroy 0b10 Robot/NC 25 | 5 20 . Destroy Leader 64 | . 44 20 Successful Hack 37 | . 37 . Disable Machine 105 | . 30 75 Destroy Structure 95 | . 68 27 Influence Decreases 504 | 5 284 215 Entered New Map 95 | . . 95 Time Decay 369 | 5 284 80 Lost Part 40 | . . 40 Squads Dispatched 2 | . 2 . Investigation 2 | . 2 . Extermination . | . . . Reinforcement . | . . . Assault . | . . . Garrison . | . . . Intercept . | . . . Searches Triggered . | . . . Construction Impeded . | . . . Haulers Reinforced . | . . . Active Scanning Responses . | . . . Cargo Convoy Interrupts . | . . . Stealth | -11 -10 -10 --------- Run | Yrd Mat Min Distress Signals 1 | . 1 . Communications Jammed . | . . . Distress Signals . | . . . Times Spotted 27 | . 21 6 Peak Tracking Total 4 | . 4 2 Tactical Retreats . | . . . Traps | -11 -10 -10 ------- Run | Yrd Mat Min Traps Triggered 2 | . 2 . Indirectly . | . . . Trap Hack Attempts . | . . . Triggered . | . . . Disarmed . | . . . Reprogrammed . | . . . Reused . | . . . Traps Extracted . | . . . Installed . | . . . Triggered . | . . . Machines | -11 -10 -10 ---------- Run | Yrd Mat Min Machines Disabled 7 | . 2 5 Max in Single Turn 5 | . 2 5 Machines Repaired . | . . . Machines Dismantled . | . . . Machines Sabotaged . | . . . Overloaded Fab Kills . | . . . Hacking | -11 -10 -10 --------- Run | Yrd Mat Min Machines Accessed 6 | . 6 . Terminals 6 | . 6 . Fabricators . | . . . Repair Stations . | . . . Recycling Units . | . . . Scanalyzers . | . . . Garrison Access . | . . . Total Hacks 15 | . 15 . Successful 6 | . 6 . Failed 9 | . 9 . Catastrophic 2 | . 2 . Database Lockouts . | . . . Manual 5 | . 5 . Terminals 15 | . 15 . Fabricators . | . . . Repair Stations . | . . . Recycling Units . | . . . Scanalyzers . | . . . Garrison Access . | . . . Terminal Hacks 6 | . 6 . Robot Analysis 2 | . 2 . Prototype ID Bank 2 | . 2 . Branch Access Points 1 | . 1 . Registered Components 1 | . 1 . Fabricator Hacks . | . . . Repair Station Hacks . | . . . Recycling Unit Hacks . | . . . Scanalyzer . | . . . Garrison Access Hacks . | . . . Unauthorized Hacks . | . . . Terminals . | . . . Fabricators . | . . . Repair Stations . | . . . Recycling Units . | . . . Scanalyzers . | . . . Garrison Access . | . . . Data Cores Recovered 1 | . 1 . Used 1 | . 1 . Hacking Detections 5 | . 5 . Full Trace Events 4 | . 4 . Feedback Events . | . . . Feedback Blocked . | . . . Robot Schematics Acquired . | . . . Robots Built . | . . . Authchips . | . . . Time . | . . . Total Robot Build Rating . | . . . Part Schematics Acquired . | . . . Parts Built . | . . . Authchips . | . . . Time . | . . . Total Part Build Rating . | . . . Parts Repaired . | . . . Time . | . . . Parts Recycled . | . . . Recycled Matter . | . . . Retrieved Matter . | . . . Retrieved Components . | . . . Parts Scanalyzed . | . . . Part Schematics Acquired . | . . . Parts Damaged . | . . . Bothacking | -11 -10 -10 ------------ Run | Yrd Mat Min Used RIF Installer . | . . . Robots Hacked . | . . . Non-combat . | . . . Combat . | . . . Robot Hacks Applied . | . . . Relay Couplers Released . | . . . Fabnet Peak Effective % . | . . . Robots Rewired . | . . . Allies Hacked . | . . . Hacks Repelled . | . . . Allies | -11 -10 -10 -------- Run | Yrd Mat Min Total Allies . | . . . Largest Group . | . . . Highest-Rated Group . | . . . Highest-Rated Ally . | . . . Total Orders . | . . . Ally Attacks . | . . . Total Damage . | . . . Kills . | . . . Allies Corrupted . | . . . Allies Melted . | . . . Intel | -11 -10 -10 ------- Run | Yrd Mat Min Active Infowar (turns) 764 | 23 651 90 Seismic 764 | 23 651 90 Robot Analysis Total 2 | . 2 . Derelict Logs Recovered . | . . . Drone Launches . | . . . Drone Recoveries . | . . . Exploration | -11 -10 -10 ------------- Run | Yrd Mat Min Turns Passed 948 | 128 651 169 Spaces Moved 553 | 68 419 66 Core 4 | 4 . . Treads 57 | 57 . . Legs . | . . . Wheels 492 | 7 419 66 Hover . | . . . Flight . | . . . Fastest Speed 50 | 50 100 175 Average Speed 144 | 147 138 175 Slowest Speed 175 | 160 175 175 Overloaded Moves . | . . . Propulsion Burnouts . | . . . Robots Hopped . | . . . Potential Cave-ins . | . . . Cave-ins Triggered . | . . . Exploration Rate (%) 31 | 6 69 18 Regions Visited 2 Branch Regions 1 Pre-discovered Areas . | . . . Known Exits Taken 1 | . 1 . Unknown Exits Taken 1 | 1 . . Scrap Searched . | . . . Spaces Dug 32 | . . 32 Terrain Destroyed 95 | . 63 32 Melee . | . . . Projectile . | . . . AOE 95 | . 63 32 Terrain Rammed . | . . . Walls Destroyed . | . . . Machines Disabled . | . . . Actions | -11 -10 -10 --------- Run | Yrd Mat Min Total 627 | 85 455 87 Wait . | . . . Move 551 | 67 418 66 Hop . | . . . Pick Up 17 | 6 11 . Fast Attach 7 | 7 . . Attach 3 | . . 3 Detach . | . . . Swap 8 | . 7 1 Drop 4 | 1 3 . Fire 37 | 4 16 17 Melee . | . . . Ram . | . . . Kick . | . . . Crush . | . . . Escape Stasis . | . . . Rewire . | . . . Trap . | . . . Miscellaneous . | . . . Route ------- -11/Scrapyard -10/Materials (discovered 3 exits: [*Mat] / *Min x2) -10/Mines (discovered 1 exit: [*Mat]) History --------- Turn | Location | Event 12 | -11/Scrapyard | Discovered new exit (range 15) 129 | -11/Scrapyard | Entered Materials 154 | -10/Materials | Identified exit to Mines 318 | -10/Materials | Build established: Mutant 588 | -10/Materials | Discovered new exit (range 15) 780 | -10/Materials | Entered Mines 811 | -10/Mines | Discovered new exit (range 9) 845 | -10/Mines | Assembled infested the area 857 | -10/Mines | Core integrity fell below 50% 863 | -10/Mines | Core integrity fell below 20% 901 | -10/Mines | Lost 3 parts (1n1u1w) 949 | -10/Mines | Destroyed by as-58893 with Assembled Rifle Last Messages --------------- 00871_ The unstable cave ceiling collapses. 00879_ Acquired 10 matter. 00880_ The unstable cave ceiling collapses. 00882_ Acquired 2 matter. 00884_ Acquired 33 matter. 00888_ Acquired 4 matter. 00889_ Acquired 110 matter. 00894_ The unstable cave ceiling collapses. 00919_ as-50550 destroyed. 00925_ The unstable cave ceiling collapses. 00930_ K-01 Serf collects debris. 00934_ R-06 Scavenger collects Com. Wheel. 00936_ as-18456 knocked back. 00936_ R-06 Scavenger collects Lgt. Deuterium Engine. 00937_ K-01 Serf collects debris. 00939_ as-18456 destroyed. 00941_ K-01 Serf collects debris. 00944_ The unstable cave ceiling collapses. 00945_ as-43703 destroyed. Map ----- +----------------------------------------------------+ | ?????????????????????????????????????????????????? | | ?????????????????????????????????????????????????? | | ?????????????????????????????????????????????????? | | ?????????????????????????????????????????????????? | | ?????????????????????????????????????????????????? | | ?????????????????????????????????????????????????? | | ?????????????????????????????????????????????????? | | ?????????????????????????????????????????????????? | | ?????????????????????????????????????????????????? | | ?????????????????????????????????????????????????? | | ?????????????????????# ??????????????????????????? | | ?????????????????????#a ?????????????????????????? | | ?????????????????????#%!?????????????????????????? | | ?????????????????????#*=?????????????????????????? | | ?????????????????????#=%?????????????????????????? | | ????????????????????##% ?????????????????????????? | | ??????????????????### #????????????????????????? | | ?????????????????## #########???????????????? | | ?????????????????# ## # ##??????????????? | | ??????????????#### #% ## ##??????####???? | | ??????????????? # #?????## ##??? | | ????????????????? """ % # ###???# ##?? | | ????????????????? """ ##### < #?? | | ????????????????? """ #?? | | ??????????????# ### # #### #### ##?? | | ??????????????####??????#@ # ### ## #??# % ###??? | | ????????????????????????# # # ## #### ##????? | | ????????????????????????# ######## #?????? | | ??????????????????????? #??????# #?????? | | ?????????????????????? #??????####### ##?????? | | ????????????????????# ######????????????# #??????? | | ????????????????????#???????????????????# #??????? | | ????????????????????????????????????????# #??????? | | ????????????????????????????????????????# #??????? | | ????????????????????????????????????????# #??????? | | ????????????????????????????????????????# #??????? | | ????????????????????????????????????????# #??????? | | ????????????????????????????????????????# #??????? | | ????????????????????????????????????????# ##?????? | | ????????????????????????????????????????# #?????? | | ????????????????????????????????????????## #?????? | | ??????????????????????????????????????#### #?####? | | ????????????????????????????????????###""" ##"#"## | | ???????????????????????????????????## | | ???????????????????????????????????# | | ???????????????????????????????????# | | ??????????????????????????????????# | | ??????????????????????????????????# | | ??????????????????????????????????# | | ??????????????????????????????????# [ | +----------------------------------------------------+ Best States ------------- Heat Dissipation 25 Energy Generation 10 Energy Capacity 250 Matter Stores 275 Matter Capacity 300 Sight Range 16 Terrain Scan Density 10 Evasion (%) 40 Recoil Reduction 1 Item Schematics ----------------- None Robot Schematics ------------------ None Fabricated ------------ Nothing Repaired ---------- Nothing Alien Tech Used ----------------- None Achievements -------------- None Challenges ------------ None Game ------ Seed GreatConcussiveDerivative Manual? 0 Play Time 00:09:47 Cumulative 100.0 hours Start 2025.08.07 @ 11:56:49 End 2025.08.07 @ 12:05:45 Sessions 1 Manual Loads 0 Difficulty Rogue Special Mode None Game No. 125 Rogue 125 Adventurer 0 Explorer 0 Win Type - Total 0 Types 0/0/0/0/0/0/0/0/0/0 Lore% 62 Gallery% 45 Achievement% 43 Wizard Run 0 Options --------- Layout 1 ASCII 0 Keyboard 0 Movement Arrows Keybinds 0 Fullscreen 1 Font 24/Smallcaps Map View 50x35 Zoom Use 0% Tactical HUD 1 Map Filters NONE Filters NONE Steam 1 RUN: c9e7e30f-5ac9-4c3a-9ff6-9927de0cf90d